fUST/lending_fUST_20250928
["ID","MTS","AMOUNT","RATE_DAILY","PERIOD"]
[388069795,1759000255677,-619.26,0.00035616,9]
[388069796,1759000255687,-480.0,0.00035616,9]
[388069797,1759000255695,-2127.26,0.00035616,9]
[388069798,1759000255704,-480.0,0.00035616,9]
[388069799,1759000255715,-983.82,0.00035616,9]
[388069800,1759000255724,-480.0,0.00035616,9]
[388069801,1759000255734,-480.0,0.00035616,9]
[388069802,1759000255743,-375.86830531,0.00035616,9]
[388069803,1759000255753,-480.0,0.00035616,9]
[388069804,1759000255762,-480.0,0.00035616,9]
[388069805,1759000255771,-480.0,0.00035616,9]
[388069806,1759000255781,-480.0,0.00035616,9]
[388069807,1759000255790,-480.0,0.00035616,9]
[388069808,1759000255799,-1609.5,0.00035616,9]
[388069809,1759000255808,-558.03,0.00035616,9]
[388069810,1759000255817,-226.74524467,0.00035616,9]
[388069811,1759000255827,-494.44,0.00035616,9]
[388069812,1759000255836,-480.0,0.00035616,9]
[388069813,1759000255845,-639.98,0.00035616,9]
[388069814,1759000255855,-480.0,0.00035616,9]
[388069815,1759000255864,-480.0,0.00035616,9]
[388069816,1759000255874,-480.0,0.00035616,9]
[388069817,1759000255883,-481.60010585,0.00035616,9]
[388069818,1759000255892,-754.74,0.00035616,9]
[388069819,1759000255902,-480.0,0.00035616,9]
[388069820,1759000255911,-641.41,0.00035616,9]
[388069821,1759000255921,-480.0,0.00035616,9]
[388069822,1759000255930,-637.05,0.00035616,9]
[388069823,1759000255939,-480.0,0.00035616,9]
[388069824,1759000255949,-599.62,0.00035616,9]
[388069825,1759000255958,-480.0,0.00035616,9]
[388069826,1759000255968,-480.0,0.00035616,9]
[388069827,1759000255976,-480.0,0.00035616,9]
[388069828,1759000255987,-670.99,0.00035616,9]
[388069829,1759000255996,-480.0,0.00035616,9]
[388069830,1759000256006,-480.0,0.00035616,9]
[388069831,1759000256015,-480.0,0.00035616,9]
[388069832,1759000256025,-480.0,0.00035616,9]
[388069833,1759000256035,-480.0,0.00035616,9]
[388069834,1759000256045,-480.0,0.00035616,9]
[388069835,1759000256055,-169.52236879,0.00035616,9]
[388069836,1759000256064,-480.0,0.00035616,9]
[388069837,1759000256074,-480.0,0.00035616,9]
[388069838,1759000256084,-626.87,0.00035616,9]
[388069839,1759000256094,-480.0,0.00035616,9]
[388069840,1759000256103,-490.29171971,0.00035616,9]
[388069841,1759000256112,-480.0,0.00035616,9]
[388069842,1759000256121,-922.28,0.00035616,9]
[388069843,1759000256132,-480.0,0.00035616,9]
[388069844,1759000256142,-763.99,0.00035616,9]
[388069845,1759000256151,-480.0,0.00035616,9]
[388069846,1759000256160,-480.0,0.00035616,9]
[388069847,1759000256170,-494.42,0.00035616,9]
[388069848,1759000256179,-632.68,0.00035616,9]
[388069849,1759000256188,-480.0,0.00035616,9]
[388069850,1759000256199,-485.43459442,0.00035616,9]
[388069851,1759000256208,-800.83,0.00035616,9]
[388069852,1759000256217,-480.0,0.00035616,9]
[388069853,1759000256229,-480.0,0.00035616,9]
[388069854,1759000256238,-483.35,0.00035616,9]
[388069855,1759000256248,-480.0,0.00035616,9]
[388069856,1759000256257,-602.64,0.00035616,9]
[388069857,1759000256266,-818.35,0.00035616,9]
[388069858,1759000256275,-480.0,0.00035616,9]
[388069859,1759000256284,-480.0,0.00035616,9]
[388069860,1759000256293,-770.35,0.00035616,9]
[388069861,1759000256302,-480.0,0.00035616,9]
[388069862,1759000256311,-691.69,0.00035616,9]
[388069863,1759000256321,-481.28991094,0.00035616,9]
[388069864,1759000256330,-483.41015661,0.00035616,9]
[388069865,1759000256340,-480.0,0.00035616,9]
[388069866,1759000256350,-623.23,0.00035616,9]
[388069867,1759000256359,-480.0,0.00035616,9]
[388069868,1759000256368,-1986.3,0.00035616,9]
[388069869,1759000256378,-912.1,0.00035616,9]
[388069870,1759000256387,-480.0,0.00035616,9]
[388069871,1759000256396,-480.0,0.00035616,9]
[388069872,1759000256405,-480.0,0.00035616,9]
[388069873,1759000256414,-655.09,0.00035616,9]
[388069874,1759000256424,-480.0,0.00035616,9]
[388069875,1759000256434,-548.28,0.00035616,9]
[388069876,1759000256443,-1564.62,0.00035616,9]
[388069877,1759000256453,-480.0,0.00035616,9]
[388069878,1759000256463,-1031.06,0.00035616,9]
[388069879,1759000256473,-480.0,0.00035616,9]
[388069880,1759000256483,-480.0,0.00035616,9]
[388069881,1759000256492,-480.0,0.00035616,9]
[388069882,1759000256502,-480.0,0.00035616,9]
[388069883,1759000256511,-480.0,0.00035616,9]
[388069884,1759000256521,-1000.0,0.00035616,9]
[388069885,1759000256531,-480.0,0.00035616,9]
[388069886,1759000256541,-480.0,0.00035616,9]
[388069887,1759000256551,-483.2832395,0.00035616,9]
[388069888,1759000256562,-480.0,0.00035616,9]
[388069889,1759000256572,-480.0,0.00035616,9]
[388069890,1759000256581,-500.0,0.00035616,9]
[388069891,1759000256590,-480.0,0.00035616,9]
[388069892,1759000256599,-480.0,0.00035616,9]
[388069893,1759000256609,-480.0,0.00035616,9]
[388069894,1759000256621,-1070.48,0.00035616,9]
[388069895,1759000256632,-480.0,0.00035616,9]
[388069896,1759000256642,-480.0,0.00035616,9]
[388069897,1759000256652,-480.0,0.00035616,9]
[388069898,1759000256662,-2631.58,0.00035616,9]
[388069899,1759000256675,-779.59,0.00035616,9]
[388069900,1759000256685,-480.0,0.00035616,9]
[388069901,1759000256694,-483.23268833,0.00035616,9]
[388069902,1759000256705,-779.59,0.00035616,9]
[388069903,1759000256716,-779.59,0.00035616,9]
[388069904,1759000256725,-779.59,0.00035616,9]
[388069905,1759000256735,-779.59,0.00035616,9]
[388069906,1759000256745,-779.59,0.00035616,9]
[388069907,1759000256758,-779.59,0.00035616,9]
[388069908,1759000256768,-779.59,0.00035616,9]
[388069909,1759000256778,-779.59,0.00035616,9]
[388069910,1759000256787,-779.59,0.00035616,9]
[388069911,1759000256797,-779.59,0.00035616,9]
[388069912,1759000256807,-779.59,0.00035616,9]
[388069913,1759000256816,-779.59,0.00035616,9]
[388069914,1759000256826,-779.59,0.00035616,9]
[388069915,1759000256835,-779.59,0.00035616,9]
[388069916,1759000256845,-779.59,0.00035616,9]
[388069917,1759000256855,-779.59,0.00035616,9]
[388069918,1759000256865,-480.0,0.00035616,9]
[388069919,1759000256875,-779.59,0.00035616,9]
[388069920,1759000256885,-779.59,0.00035616,9]
[388069921,1759000256896,-779.59,0.00035616,9]
[388069922,1759000256906,-779.59,0.00035616,9]
[388069923,1759000256916,-779.59,0.00035616,9]
[388069924,1759000256927,-779.59,0.00035616,9]
[388069925,1759000256936,-779.67,0.00035616,9]
[388069926,1759000257066,-480.0,0.00035616,9]
[388069927,1759000257078,-480.0,0.00035616,9]
[388069928,1759000257088,-480.0,0.00035616,9]
[388069929,1759000257098,-480.0,0.00035616,9]
[388069930,1759000257107,-1176.01,0.00035616,9]
[388069931,1759000257117,-3201.23,0.00035616,9]
[388069932,1759000257127,-480.0,0.00035616,9]
[388069933,1759000257138,-294.22862839,0.00035616,9]
[388069934,1759000257148,-480.0,0.00035616,9]
[388069935,1759000257158,-480.0,0.00035616,9]
[388069936,1759000257168,-14.2004046,0.00035616,9]
[388069937,1759000257226,-465.7995954,0.00035616,9]
[388069938,1759000257236,-480.0,0.00035616,9]
[388069939,1759000257246,-480.0,0.00035616,9]
[388069940,1759000257256,-255.21533948,0.00035616,9]
[388069941,1759000257267,-1939.79,0.00035616,9]
[388069942,1759000257276,-480.0,0.00035616,9]
[388069943,1759000257285,-248.44200045,0.00035616,9]
[388069944,1759000257295,-480.0,0.00035616,9]
[388069945,1759000257304,-2961.48,0.00035616,9]
[388069946,1759000257313,-480.0,0.00035616,9]
[388069947,1759000257323,-845.97,0.00035616,9]
[388069948,1759000257332,-1208.86,0.00035616,9]
[388069949,1759000257342,-1092.56,0.00035616,9]
[388069950,1759000257351,-480.0,0.00035616,9]
[388069951,1759000257360,-1641.83,0.00035616,9]
[388069952,1759000257369,-483.16287236,0.00035616,9]
[388069953,1759000257378,-728.97,0.00035616,9]
[388069954,1759000257387,-480.0,0.00035616,9]
[388069955,1759000257397,-480.0,0.00035616,9]
[388069956,1759000257406,-493.80850221,0.00035616,9]
[388069957,1759000257416,-483.35122381,0.00035616,9]
[388069958,1759000257426,-480.0,0.00035616,9]
[388069959,1759000257435,-480.0,0.00035616,9]
[388069960,1759000257444,-480.0,0.00035616,9]
[388069961,1759000257453,-480.0,0.00035616,9]
[388069962,1759000257463,-604.5,0.00035616,9]
[388069963,1759000257472,-480.83791079,0.00035616,9]
[388069964,1759000257482,-1406.0,0.00035616,9]
[388069965,1759000257491,-3625.78,0.00035616,9]
[388069966,1759000257500,-480.0,0.00035616,9]
[388069967,1759000257510,-480.0,0.00035616,9]
[388069968,1759000257520,-500.0,0.00035616,9]
[388069969,1759000257530,-500.0,0.00035616,9]
[388069970,1759000257540,-586.42,0.00035616,9]
[388069971,1759000257550,-500.0,0.00035616,9]
[388069972,1759000257559,-500.0,0.00035616,9]
[388069973,1759000257568,-500.0,0.00035616,9]
[388069974,1759000257578,-500.0,0.00035616,9]
[388069975,1759000257587,-500.0,0.00035616,9]
[388069976,1759000257597,-3552.24,0.00035616,9]
[388069977,1759000257608,-500.0,0.00035616,9]
[388069978,1759000257618,-500.0,0.00035616,9]
[388069979,1759000257628,-500.0,0.00035616,9]
[388069980,1759000257638,-500.0,0.00035616,9]
[388069981,1759000257648,-500.0,0.00035616,9]
[388069982,1759000257657,-324.69016372,0.00035616,9]
[388069983,1759000257671,-187.075955,0.00035616,9]
[388069984,1759000257684,-8668.49,0.00035616,9]
[388069985,1759000257695,-480.0,0.00035616,9]
[388069986,1759000257716,-2405.19,0.00035616,9]
[388069987,1759000257731,-497.49327043,0.00035616,9]
[388069988,1759000257740,-480.0,0.00035616,9]
[388069989,1759000257750,-480.0,0.00035616,9]
[388069990,1759000257759,-480.0,0.00035616,9]
[388069991,1759000257768,-480.0,0.00035616,9]
[388069992,1759000257778,-1025.42,0.00035616,9]
[388069993,1759000257787,-1861.41,0.00035616,9]
[388069994,1759000257797,-480.0,0.00035616,9]
[388069995,1759000257807,-480.0,0.00035616,9]
[388069996,1759000257816,-480.0,0.00035616,9]
[388069997,1759000257826,-494.34,0.00035616,9]
[388069998,1759000257835,-480.0,0.00035616,9]
[388069999,1759000257845,-229.1255591,0.00035616,9]
[388070000,1759000257855,-8864.36,0.00035616,9]
[388070001,1759000257864,-480.0,0.00035616,9]
[388070002,1759000257873,-733.73,0.00035616,9]
[388070003,1759000257882,-500.0,0.00035616,9]
[388070004,1759000257892,-480.0,0.00035616,9]
[388070005,1759000257901,-500.0,0.00035616,9]
[388070006,1759000257910,-480.0,0.00035616,9]
[388070007,1759000257920,-500.0,0.00035616,9]
[388070008,1759000257929,-507.17904501,0.00035616,9]
[388070009,1759000257938,-480.0,0.00035616,9]
[388070010,1759000257948,-480.0,0.00035616,9]
[388070011,1759000257958,-480.0,0.00035616,9]
[388070012,1759000257968,-480.0,0.00035616,9]
[388070013,1759000257978,-480.0,0.00035616,9]
[388070014,1759000257987,-865.76,0.00035616,9]
[388070015,1759000257997,-480.0,0.00035616,9]
[388070016,1759000258007,-480.0,0.00035616,9]
[388070017,1759000258016,-480.0,0.00035616,9]
[388070018,1759000258026,-500.0,0.00035616,9]
[388070019,1759000258035,-480.0,0.00035616,9]
[388070020,1759000258045,-500.0,0.00035616,9]
[388070021,1759000258054,-480.0,0.00035616,9]
[388070022,1759000258064,-500.0,0.00035616,9]
[388070023,1759000258073,-500.0,0.00035616,9]
[388070024,1759000258083,-500.0,0.00035616,9]
[388070025,1759000258093,-500.0,0.00035616,9]
[388070026,1759000258102,-480.0,0.00035616,9]
[388070027,1759000258112,-513.3977491,0.00035616,9]
[388070028,1759000258121,-480.0,0.00035616,9]
[388070029,1759000258131,-500.0,0.00035616,9]
[388070030,1759000258140,-500.0,0.00035616,9]
[388070031,1759000258150,-480.0,0.00035616,9]
[388070032,1759000258160,-299.57089967,0.00035616,9]
[388070033,1759000258169,-482.76075637,0.00035616,9]
[388070034,1759000258180,-480.0,0.00035616,7]
[388070035,1759000258190,-480.0,0.00035616,9]
[388070036,1759000258199,-4948.2,0.00035616,3]
[388070037,1759000258209,-1384.35,0.00035616,9]
[388070038,1759000258219,-480.0,0.00035616,9]
[388070039,1759000258230,-6927.03,0.00035616,9]
[388070040,1759000258240,-6927.03,0.00035616,9]
[388070041,1759000258251,-6927.03,0.00035616,9]
[388070042,1759000258261,-1510.212168,0.00035616,9]
[388070043,1759000425854,206.162002,0.00023688,2]
[388070044,1759000444539,5000.0,0.00023831,2]
[388070045,1759000467479,4793.847998,0.00023831,2]
[388070046,1759000467501,206.152002,0.00023831,2]
[388070057,1759000489823,5000.0,0.00023831,2]
[388070058,1759000512707,5000.0,0.00023831,2]
[388070059,1759000535506,5000.0,0.00023831,2]
[388070060,1759000544282,0.01,0.00023831,2]
[388070061,1759000544307,3365.69493916,0.00023831,2]
[388070069,1759000560294,5000.0,0.00023831,2]
[388070070,1759000568311,1000.0,0.00023297,2]
[388070071,1759000583752,634.31506084,0.00023831,2]
[388070072,1759000583776,4365.68493916,0.00023831,2]
[388070073,1759000606919,5000.0,0.00023831,2]
[388070074,1759000622874,634.32506084,0.00023831,2]
[388070075,1759000622901,4365.67493916,0.00023831,2]
[388070076,1759000631270,5000.0,0.00023831,2]
[388070077,1759000639555,5000.0,0.00023831,2]
[388070078,1759000655091,4557.56642709,0.00023831,2]
[388070079,1759000788682,442.44357291,0.00023295,2]
[388070080,1759000788703,223.55642709,0.00023295,2]
[388070081,1759000932201,-4897.3503434,0.0002387,7]
[388070082,1759000932228,-21.31187691,0.0002387,2]
[388070083,1759000932427,-162.68555938,0.0002387,2]
[388070084,1759000932455,-414.94409295,0.00024193,2]
[388070085,1759000932482,-511.213513,0.00024199,2]
[388070086,1759000932509,-300.0,0.00024291,2]
[388070087,1759000932536,-500.0,0.00024292,2]
[388070088,1759000932564,-500.0,0.00024292,2]
[388070089,1759000932594,-500.0,0.00024292,2]
[388070090,1759000932623,-189.32367197,0.00024292,2]
[388070091,1759000932651,-228.3726305,0.00024292,2]
[388070092,1759000932681,-500.0,0.00024292,2]
[388070093,1759000932709,-500.0,0.00024292,2]
[388070094,1759000932737,-500.0,0.00024292,2]
[388070095,1759000932882,-500.0,0.00024292,2]
[388070096,1759000932913,-201.41089688,0.00024292,2]
[388070097,1759000932943,-500.0,0.00024292,2]
[388070098,1759000932970,-500.0,0.00024292,2]
[388070099,1759000938977,1200.0,0.00024291,2]
[388070100,1759000952885,230.70446863,0.00024291,2]
[388070101,1759000953664,298.81374133,0.00024291,2]
[388070102,1759000953691,189.04565521,0.00024291,2]
[388070103,1759000982557,300.0,0.00024291,2]
[388070104,1759001001464,194.55846879,0.00024193,2]
[388070105,1759001011390,165.53019334,0.00024193,2]
[388070106,1759001042277,300.0,0.00024291,2]
[388070107,1759001055091,276.6293953,0.00024193,2]
[388070108,1759001074111,161.49312804,0.00024291,2]
[388070109,1759001101392,195.0,0.00024292,2]
[388070110,1759001101992,300.0,0.00024292,2]
[388070111,1759001102051,300.0,0.00024292,2]
[388070112,1759001102078,300.0,0.00024292,2]
[388070113,1759001102103,300.0,0.00024292,2]
[388070114,1759001103180,1200.0,0.00024292,2]
[388070115,1759001144238,160.0,0.00024292,2]
[388070119,1759001192714,-300.0,0.000243,2]
[388070129,1759001215094,-184.41959686,0.00026528,2]
[388070130,1759001215114,-300.0,0.00026627,2]
[388070131,1759001215133,-535.60478433,0.00026628,2]
[388070145,1759001243129,-191.14337567,0.00026627,2]
[388070153,1759001268449,252.66510701,0.000209,2]
[388070161,1759001284338,2339.55975627,0.00025205,2]
[388070163,1759001299305,273.10067795,0.00021,2]
[388070166,1759001307847,356.55743892,0.00022,2]
[388070167,1759001309398,9370.35188313,0.0002,2]
[388070168,1759001309421,5123.13121347,0.0002,2]
[388070169,1759001309739,4876.87878653,0.00024,2]
[388070170,1759001309762,3392.24168883,0.00024,2]
[388070171,1759001310022,605.0,0.000228,2]
[388070172,1759001311914,2875.6338291,0.00017,2]
[388070173,1759001312101,270.8400594,0.00022,5]
[388070174,1759001313732,2856.29442267,0.0002,2]
[388070175,1759001313755,10000.01,0.0002,2]
[388070176,1759001313776,7143.69557733,0.0002,2]
[388070177,1759001314045,999.18175569,0.00022427,2]
[388070179,1759001314959,1711.11752083,0.00024,2]
[388070187,1759001316565,146.01514615,0.00018,2]
[388070188,1759001316588,4853.98485385,0.00018,2]
[388070192,1759001320156,163.3399967,0.00024,2]
[388070194,1759001322331,458.79566688,0.00024,2]
[388070198,1759001364070,-7718.79808564,0.0002465,2]
[388070235,1759001432145,-1560.24844636,0.0002465,2]
[388070237,1759001432154,-5000.0,0.00024953,2]
[388070239,1759001432163,-4197.55475753,0.00025,3]
[388070241,1759001432172,-618.77258876,0.00025,2]
[388070243,1759001432181,-1643.1710766,0.00025,7]
[388070247,1759001432203,-2159.93952116,0.00025,7]
[388070249,1759001432212,-12307.50355098,0.00025,2]
[388070251,1759001432222,-7094.42884097,0.00025,2]
[388070253,1759001432234,-209.37563157,0.00025,2]
[388070255,1759001432243,-10364.0,0.00025,2]
[388070257,1759001432252,-361.57957058,0.00025,2]
[388070260,1759001432261,-150.0,0.00025,2]
[388070263,1759001432271,-500.0,0.00025,2]
[388070266,1759001432279,-1173.03223592,0.00025,2]
[388070269,1759001432288,-600.0,0.00025,2]
[388070271,1759001432297,-4309.05640105,0.000258,2]
[388070274,1759001432308,-160.443,0.00027218,15]
[388070277,1759001432317,-12682.51315197,0.00028586,2]
[388070281,1759001432328,-1002.63167827,0.00028586,2]
[388070284,1759001432339,-26314.89516976,0.00028586,2]
[388070286,1759001432348,-1112.774656,0.0003125,2]
[388070288,1759001432356,-189.3309625,0.00032606,2]
[388070289,1759001432365,-233.76631357,0.00032607,2]
[388070290,1759001432374,-555.95658,0.00032877,2]
[388070291,1759001432383,-3440.6788342,0.00033129,2]
[388070292,1759001432392,-245.06,0.00033209,10]
[388070293,1759001432401,-189.3309625,0.00033219,7]
[388070294,1759001432410,-50000.0,0.00033219,2]
[388070295,1759001432419,-27814.69388719,0.00033219,7]
[388070309,1759001438180,-88790.56836708,0.00033219,7]
[388070310,1759001438190,-480.000001,0.00033219,2]
[388070311,1759001438200,-375.87799197,0.00033219,2]
[388070312,1759001438210,-12116.88619757,0.00033219,2]
[388070313,1759001438220,-189.3309625,0.000342,7]
[388070314,1759001438231,-500.0,0.00034433,2]
[388070315,1759001438241,-503.40986431,0.00034433,5]
[388070316,1759001438251,-417.998,0.0003453,2]
[388070317,1759001438260,-410.0,0.0003453,2]
[388070318,1759001438270,-635.0,0.0003453,2]
[388070319,1759001438280,-2161.0,0.0003453,2]
[388070320,1759001438290,-4588.0,0.000347,2]
[388070321,1759001438299,-1893.69946723,0.0003487,2]
[388070322,1759001438312,-443.34848064,0.00034952,2]
[388070323,1759001438321,-114367.83421,0.0003497,2]
[388070324,1759001438331,-490.98,0.0003497,3]
[388070325,1759001438341,-114367.83421,0.0003498,2]
[388070326,1759001438350,-538.31,0.0003498,3]
[388070327,1759001438361,-100000.0,0.0003499,2]
[388070328,1759001438371,-500.0,0.00035,5]
[388070329,1759001438380,-500.0,0.00035,5]
[388070330,1759001438389,-57183.9171052,0.00035005,2]
[388070331,1759001438398,-500.0,0.00035068,120]
[388070332,1759001438408,-500.0,0.00035068,120]
[388070333,1759001438418,-500.0,0.00035068,120]
[388070334,1759001438427,-500.0,0.00035068,120]
[388070335,1759001438437,-500.0,0.00035068,120]
[388070336,1759001438446,-5000.0,0.00035174,4]
[388070337,1759001438455,-1893.69946722,0.00035193,2]
[388070338,1759001438467,-189.3309625,0.000352,7]
[388070339,1759001438477,-306.22205256,0.00035331,2]
[388070340,1759001438485,-500.0,0.00035342,120]
[388070341,1759001438495,-349.58004198,0.00035396,2]
[388070342,1759001438504,-176.10970336,0.00035416,2]
[388070343,1759001438513,-57183.9171052,0.00035486,3]
[388070344,1759001438522,-349.58004194,0.00035495,2]
[388070345,1759001438531,-151.0,0.00035496,10]
[388070346,1759001438541,-151.0,0.00035496,10]
[388070347,1759001438551,-151.0,0.00035496,10]
[388070348,1759001438560,-151.0,0.00035496,10]
[388070349,1759001438573,-151.42773969,0.00035496,10]
[388070350,1759001438583,-151.0,0.00035496,10]
[388070351,1759001438593,-151.0,0.00035496,10]
[388070352,1759001438603,-151.0,0.00035496,10]
[388070353,1759001438613,-151.0,0.00035496,10]
[388070354,1759001438622,-151.0,0.00035496,10]
[388070355,1759001438631,-151.0,0.00035496,10]
[388070356,1759001438640,-151.0,0.00035496,10]
[388070357,1759001438650,-151.0,0.00035496,10]
[388070358,1759001438659,-151.0,0.00035496,10]
[388070359,1759001438668,-500.0,0.00035496,10]
[388070360,1759001438677,-155.44912711,0.000355,90]
[388070361,1759001438687,-500.0,0.00035505,120]
[388070362,1759001438696,-639.8141722,0.00035505,120]
[388070363,1759001438973,-1000.0,0.00035515,2]
[388070364,1759001438983,-1000.0,0.00035515,2]
[388070365,1759001438992,-1000.0,0.00035515,2]
[388070366,1759001439000,-1000.0,0.00035515,2]
[388070367,1759001439009,-1000.0,0.00035515,2]
[388070368,1759001439018,-1000.0,0.00035515,2]
[388070369,1759001439028,-1000.0,0.00035515,2]
[388070370,1759001439037,-1000.0,0.00035515,2]
[388070371,1759001439047,-1000.0,0.00035515,2]
[388070372,1759001439056,-1000.0,0.00035515,2]
[388070373,1759001439065,-1000.0,0.00035515,2]
[388070374,1759001439074,-1000.0,0.00035515,2]
[388070375,1759001439083,-1000.0,0.00035515,2]
[388070376,1759001439091,-1000.0,0.00035515,2]
[388070377,1759001439100,-1000.0,0.00035515,2]
[388070378,1759001439110,-1000.0,0.00035515,2]
[388070379,1759001439121,-1000.0,0.00035515,2]
[388070380,1759001439130,-1000.0,0.00035515,2]
[388070381,1759001439140,-1000.0,0.00035515,2]
[388070382,1759001439149,-1000.0,0.00035515,2]
[388070383,1759001439158,-312.5358164,0.00035515,2]
[388070384,1759001439167,-219284.38358382,0.00035516,2]
[388070385,1759001439179,-150715.61641618,0.00035516,2]
[388070386,1759001439187,-1893.69946722,0.00035516,2]
[388070387,1759001439197,-5529.13427943,0.00035516,2]
[388070388,1759001439206,-800.0,0.00035523,2]
[388070389,1759001439216,-800.0,0.00035569,2]
[388070390,1759001439226,-500.0,0.00035573,5]
[388070391,1759001439236,-357.2568059,0.00035573,5]
[388070392,1759001439245,-150.0,0.00035573,5]
[388070393,1759001439255,-500.0,0.00035573,5]
[388070394,1759001439264,-500.0,0.00035573,5]
[388070395,1759001439274,-500.0,0.00035573,2]
[388070396,1759001439283,-502.00075348,0.00035573,5]
[388070397,1759001439293,-500.0,0.00035573,3]
[388070398,1759001439304,-349.58004194,0.00035593,2]
[388070399,1759001439315,-189.3309625,0.00035606,3]
[388070400,1759001439328,-5896.86202731,0.00035616,3]
[388070401,1759001439338,-480.0,0.00035616,9]
[388070402,1759001439347,-480.0,0.00035616,9]
[388070403,1759001439356,-585.01091813,0.00035616,9]
[388070404,1759001439366,-480.0,0.00035616,9]
[388070405,1759001439375,-480.0,0.00035616,9]
[388070406,1759001439385,-480.0,0.00035616,9]
[388070407,1759001439394,-480.0,0.00035616,9]
[388070408,1759001439404,-480.0,0.00035616,9]
[388070409,1759001439414,-317.47761699,0.00035616,9]
[388070410,1759001439431,-480.0,0.00035616,9]
[388070411,1759001439441,-480.0,0.00035616,9]
[388070412,1759001439450,-482.04771949,0.00035616,9]
[388070413,1759001439460,-3468.3718131,0.00035616,2]
[388070414,1759001439470,-480.0,0.00035616,9]
[388070415,1759001439480,-483.91879368,0.00035616,9]
[388070416,1759001439489,-480.0,0.00035616,9]
[388070417,1759001439498,-480.0,0.00035616,9]
[388070418,1759001439507,-611.75130681,0.00035616,9]
[388070419,1759001439516,-480.0,0.00035616,9]
[388070420,1759001439526,-481.78275944,0.00035616,9]
[388070421,1759001439537,-480.0,0.00035616,9]
[388070422,1759001439547,-480.0,0.00035616,9]
[388070423,1759001439556,-621.49,0.00035616,9]
[388070424,1759001439565,-480.0,0.00035616,9]
[388070425,1759001439574,-480.0,0.00035616,9]
[388070426,1759001439583,-480.0,0.00035616,9]
[388070427,1759001439593,-481.73782029,0.00035616,9]
[388070429,1759001439604,-480.0,0.00035616,9]
[388070431,1759001439614,-480.0,0.00035616,9]
[388070433,1759001439623,-480.0,0.00035616,9]
[388070435,1759001439632,-480.0,0.00035616,9]
[388070437,1759001439642,-500.68579593,0.00035616,2]
[388070439,1759001439651,-480.0,0.00035616,9]
[388070440,1759001439660,-609.27693298,0.00035616,9]
[388070441,1759001439670,-480.0,0.00035616,9]
[388070442,1759001439679,-480.0,0.00035616,9]
[388070443,1759001439688,-611.47,0.00035616,9]
[388070444,1759001439697,-480.0,0.00035616,9]
[388070445,1759001439707,-1010.27,0.00035616,9]
[388070447,1759001439716,-156.0,0.00035616,14]
[388070449,1759001439725,-156.0,0.00035616,14]
[388070450,1759001439735,-155.53405102,0.00035616,14]
[388070451,1759001439744,-480.0,0.00035616,9]
[388070452,1759001439753,-480.0,0.00035616,9]
[388070453,1759001439763,-480.0,0.00035616,9]
[388070454,1759001439773,-480.0,0.00035616,9]
[388070455,1759001439783,-480.0,0.00035616,9]
[388070456,1759001439792,-480.0,0.00035616,9]
[388070457,1759001439802,-480.0,0.00035616,9]